fUSD/lending_fUSD_20260601
["ID","MTS","AMOUNT","RATE_DAILY","PERIOD"]
[423645199,1780272644000,-202.13014603,0.00029806,2]
[423645202,1780272644000,-346.18525087,0.00029821,2]
[423645198,1780272644000,-311.1398163,0.00029806,2]
[423645201,1780272644000,-632.0,0.00029807,4]
[423645200,1780272644000,-406.06380234,0.00029806,2]
[423645205,1780272644000,-323.80744402,0.00029821,2]
[423645203,1780272644000,-226.2217868,0.00029821,2]
[423645215,1780272644000,-231.54,0.00030137,2]
[423645207,1780272644000,-293.5,0.00029999,3]
[423645210,1780272644000,-362.06902251,0.0003,2]
[423645208,1780272644000,-293.51,0.00029999,3]
[423645209,1780272644000,-337.83864135,0.0003,7]
[423645216,1780272644000,-200.0,0.00030137,2]
[423645213,1780272644000,-11104.3220917,0.00030122,2]
[423645214,1780272644000,-337.83864135,0.0003013,7]
[423645219,1780272644000,-333.1941578,0.00030137,2]
[423645212,1780272644000,-150.82036713,0.00030037,2]
[423645217,1780272644000,-1000.0,0.00030137,50]
[423645218,1780272644000,-166.5970789,0.00030137,2]
[423645193,1780272644000,-370.86642179,0.00029805,2]
[423645206,1780272644000,-180.39166326,0.00029821,2]
[423645195,1780272644000,-308.13696036,0.00029805,2]
[423645166,1780272644000,-578.30455366,0.00029746,2]
[423645190,1780272644000,-1196.0,0.00029753,30]
[423645165,1780272644000,-191.53533824,0.00029746,2]
[423645164,1780272644000,-538.05150092,0.00029746,2]
[423645175,1780272644000,-174.22859941,0.00029746,2]
[423645220,1780272644000,-1000.0,0.00030137,3]
[423645170,1780272644000,-342.85152671,0.00029746,2]
[423645168,1780272644000,-202.86114975,0.00029746,2]
[423645167,1780272644000,-558.31401458,0.00029746,2]
[423645169,1780272644000,-196.01566885,0.00029746,2]
[423645171,1780272644000,-226.50854754,0.00029746,2]
[423645172,1780272644000,-320.25893733,0.00029746,2]
[423645173,1780272644000,-216.16440807,0.00029746,2]
[423645174,1780272644000,-370.78032967,0.00029746,2]
[423645189,1780272644000,-156.0,0.00029753,30]
[423645176,1780272644000,-327.4400955,0.00029746,2]
[423645179,1780272644000,-474.19489593,0.00029746,2]
[423645178,1780272644000,-397.37604659,0.00029746,2]
[423645181,1780272644000,-190.67469315,0.00029746,2]
[423645177,1780272644000,-167.66732712,0.00029746,2]
[423645183,1780272644000,-444.27436821,0.00029746,2]
[423645182,1780272644000,-191.00236268,0.00029746,2]
[423645184,1780272644000,-196.31984298,0.00029746,2]
[423645185,1780272644000,-221.76764193,0.00029746,2]
[423645186,1780272644000,-202.43701426,0.00029746,2]
[423645188,1780272644000,-995.0,0.00029753,30]
[423645191,1780272644000,-560.78,0.00029777,7]
[423645187,1780272644000,-186.0,0.00029753,30]
[423645180,1780272644000,-364.98340508,0.00029746,2]
[423645222,1780272644000,-172.88,0.00030137,2]
[423645211,1780272644000,-650.0,0.0003,2]
[423645221,1780272644000,-203.39,0.00030137,30]
[423645247,1780272644000,-500.0,0.0003033,2]
[423645246,1780272644000,-500.0,0.0003033,2]
[423645263,1780272644000,-500.0,0.0003033,2]
[423645267,1780272644000,-500.0,0.0003033,2]
[423645261,1780272644000,-500.0,0.0003033,2]
[423645266,1780272644000,-500.0,0.0003033,2]
[423645265,1780272644000,-500.0,0.0003033,2]
[423645256,1780272644000,-500.0,0.0003033,2]
[423645262,1780272644000,-500.0,0.0003033,2]
[423645264,1780272644000,-500.0,0.0003033,2]
[423645259,1780272644000,-500.0,0.0003033,2]
[423645257,1780272644000,-500.0,0.0003033,2]
[423645253,1780272644000,-500.0,0.0003033,2]
[423645258,1780272644000,-500.0,0.0003033,2]
[423645279,1780272644000,-66244.98348943,0.00030331,2]
[423645268,1780272644000,-500.0,0.0003033,2]
[423645271,1780272644000,-500.0,0.0003033,2]
[423645270,1780272644000,-500.0,0.0003033,2]
[423645273,1780272644000,-500.0,0.0003033,2]
[423645275,1780272644000,-500.0,0.0003033,2]
[423645277,1780272644000,-500.0,0.0003033,2]
[423645274,1780272644000,-500.0,0.0003033,2]
[423645278,1780272644000,-174.93720831,0.0003033,2]
[423645276,1780272644000,-500.0,0.0003033,2]
[423645272,1780272644000,-500.0,0.0003033,2]
[423645224,1780272644000,-7244.9602,0.00030137,25]
[423645269,1780272644000,-500.0,0.0003033,2]
[423645250,1780272644000,-500.0,0.0003033,2]
[423645260,1780272644000,-500.0,0.0003033,2]
[423645251,1780272644000,-500.0,0.0003033,2]
[423645223,1780272644000,-277.34,0.00030137,2]
[423645252,1780272644000,-500.0,0.0003033,2]
[423645231,1780272644000,-336.77,0.000302,7]
[423645225,1780272644000,-286.7,0.00030137,2]
[423645226,1780272644000,-1221.17444882,0.00030137,25]
[423645228,1780272644000,-286.69,0.00030137,2]
[423645229,1780272644000,-286.69,0.00030137,2]
[423645227,1780272644000,-286.7,0.00030137,2]
[423645233,1780272644000,-701.23,0.000302,7]
[423645242,1780272644000,-500.0,0.0003033,2]
[423645240,1780272644000,-500.0,0.0003033,2]
[423645236,1780272644000,-266.29,0.00030236,7]
[423645235,1780272644000,-266.29,0.00030236,7]
[423645230,1780272644000,-2000.0,0.00030145,19]
[423645237,1780272644000,-571.2,0.00030239,2]
[423645248,1780272644000,-500.0,0.0003033,2]
[423645243,1780272644000,-500.0,0.0003033,2]
[423645245,1780272644000,-500.0,0.0003033,2]
[423645249,1780272644000,-500.0,0.0003033,2]
[423645254,1780272644000,-500.0,0.0003033,2]
[423645244,1780272644000,-500.0,0.0003033,2]
[423645255,1780272644000,-500.0,0.0003033,2]
[423645234,1780272644000,-2000.0,0.00030213,50]
[423645232,1780272644000,-326.49,0.000302,2]
[423645238,1780272644000,-3370.31,0.000303,14]
[423645241,1780272644000,-500.0,0.0003033,2]
[423645239,1780272644000,-1034.82,0.000303,7]
[423645336,1780272645000,-160.704819,0.00030633,2]
[423645327,1780272645000,-335.33465425,0.00030633,2]
[423645324,1780272645000,-163.10316335,0.00030633,2]
[423645325,1780272645000,-491.16014326,0.00030633,2]
[423645335,1780272645000,-259.05351718,0.00030633,2]
[423645314,1780272645000,-405.7222995,0.00030633,2]
[423645319,1780272645000,-514.27729006,0.00030633,2]
[423645317,1780272645000,-278.89617453,0.00030633,2]
[423645316,1780272645000,-294.98254049,0.00030633,2]
[423645318,1780272645000,-155.29320833,0.00030633,2]
[423645313,1780272645000,-207.55057899,0.00030633,2]
[423645312,1780272645000,-295.29024967,0.00030633,2]
[423645337,1780272645000,-547.47510762,0.00030633,2]
[423645315,1780272645000,-392.03133769,0.00030633,2]
[423645326,1780272645000,-348.45719882,0.00030633,2]
[423645340,1780272645000,-381.3493863,0.00030633,2]
[423645329,1780272645000,-298.66164108,0.00030633,2]
[423645330,1780272645000,-596.06406988,0.00030633,2]
[423645333,1780272645000,-711.2923439,0.00030633,2]
[423645334,1780272645000,-166.95919349,0.00030633,2]
[423645332,1780272645000,-215.68079694,0.00030633,2]
[423645331,1780272645000,-150.06642712,0.00030633,2]
[423645338,1780272645000,-295.26397494,0.00030633,2]
[423645342,1780272645000,-280.24856263,0.00030633,2]
[423645341,1780272645000,-666.41155232,0.00030633,2]
[423645350,1780272645000,-1226.0,0.00030672,2]
[423645343,1780272645000,-382.00472536,0.00030633,2]
[423645346,1780272645000,-404.87402852,0.00030633,2]
[423645347,1780272645000,-228.19513621,0.00030633,2]
[423645320,1780272645000,-453.01709509,0.00030633,2]
[423645328,1780272645000,-499.7912367,0.00030633,2]
[423645310,1780272645000,-837.47102187,0.00030633,2]
[423645284,1780272645000,-355.10184064,0.00030633,2]
[423645322,1780272645000,-432.32881614,0.00030633,2]
[423645280,1780272645000,-632.0,0.00030341,5]
[423645281,1780272645000,-165.15,0.00030411,120]
[423645282,1780272645000,-5531.0,0.000305,5]
[423645291,1780272645000,-573.37136375,0.00030633,2]
[423645289,1780272645000,-500.73643069,0.00030633,2]
[423645288,1780272645000,-241.32114498,0.00030633,2]
[423645292,1780272645000,-296.85808486,0.00030633,2]
[423645286,1780272645000,-475.11139281,0.00030633,2]
[423645285,1780272645000,-340.80578671,0.00030633,2]
[423645290,1780272645000,-293.8965262,0.00030633,2]
[423645287,1780272645000,-493.46340399,0.00030633,2]
[423645283,1780272645000,-615.93978134,0.00030633,2]
[423645294,1780272645000,-312.13647517,0.00030633,2]
[423645293,1780272645000,-236.01592391,0.00030633,2]
[423645296,1780272645000,-415.41632549,0.00030633,2]
[423645307,1780272645000,-867.45683049,0.00030633,2]
[423645295,1780272645000,-317.01274671,0.00030633,2]
[423645321,1780272645000,-480.38840599,0.00030633,2]
[423645311,1780272645000,-263.92985847,0.00030633,2]
[423645301,1780272645000,-482.72183817,0.00030633,2]
[423645299,1780272645000,-280.65367727,0.00030633,2]
[423645300,1780272645000,-276.11041174,0.00030633,2]
[423645297,1780272645000,-295.05080976,0.00030633,2]
[423645323,1780272645000,-556.17049451,0.00030633,2]
[423645304,1780272645000,-267.08008306,0.00030633,2]
[423645309,1780272645000,-220.50193854,0.00030633,2]
[423645306,1780272645000,-206.78810334,0.00030633,2]
[423645305,1780272645000,-297.12857491,0.00030633,2]
[423645308,1780272645000,-228.96462127,0.00030633,2]
[423645302,1780272645000,-807.07725139,0.00030633,2]
[423645303,1780272645000,-383.07067648,0.00030633,2]
[423645298,1780272645000,-242.07549863,0.00030633,2]
[423645339,1780272645000,-297.71261847,0.00030633,2]
[423645344,1780272645000,-392.63968597,0.00030633,2]
[423645348,1780272645000,-4260.94,0.0003064,7]
[423645393,1780272645000,-995.0,0.00030753,30]
[423645395,1780272645000,-1196.0,0.00030753,30]
[423645399,1780272645000,-150.0,0.00031011,2]
[423645392,1780272645000,-186.0,0.00030753,30]
[423645397,1780272645000,-1221.40063521,0.00030998,86]
[423645400,1780272645000,-2000.0,0.00031049,21]
[423645394,1780272645000,-156.0,0.00030753,30]
[423645396,1780272645000,-632.0,0.00030875,6]
[423645402,1780272645000,-150.0,0.00031099,2]
[423645411,1780272645000,-657.95120532,0.00031225,2]
[423645401,1780272645000,-200.0,0.00031096,2]
[423645413,1780272645000,-587.79305241,0.00031225,2]
[423645412,1780272645000,-667.64857425,0.00031225,2]
[423645403,1780272645000,-271.6,0.000311,120]
[423645404,1780272645000,-530.74786529,0.00031191,3]
[423645405,1780272645000,-821.25304178,0.00031225,2]
[423645406,1780272645000,-532.65276096,0.00031225,2]
[423645349,1780272645000,-525.0,0.00030672,2]
[423645422,1780272645000,-623.12448824,0.00031225,2]
[423645417,1780272645000,-468.20471276,0.00031225,2]
[423645418,1780272645000,-475.51912006,0.00031225,2]
[423645423,1780272645000,-590.10161953,0.00031225,2]
[423645419,1780272645000,-214.12801187,0.00031225,2]
[423645398,1780272645000,-151.0,0.00031005,4]
[423645416,1780272645000,-472.03184783,0.00031225,2]
[423645414,1780272645000,-764.49515167,0.00031225,2]
[423645415,1780272645000,-593.71616971,0.00031225,2]
[423645408,1780272645000,-165.70510902,0.00031225,2]
[423645409,1780272645000,-633.48185708,0.00031225,2]
[423645410,1780272645000,-482.64228996,0.00031225,2]
[423645407,1780272645000,-511.20868007,0.00031225,2]
[423645420,1780272645000,-268.15849662,0.00031225,2]
[423645390,1780272645000,-1179.0,0.00030722,30]
[423645421,1780272645000,-411.57344024,0.00031225,2]
[423645389,1780272645000,-158.0,0.00030722,30]
[423645391,1780272645000,-288.0,0.00030722,30]
[423645345,1780272645000,-443.53528387,0.00030633,2]
[423645352,1780272645000,-6067.0,0.00030672,2]
[423645363,1780272645000,-404.26029206,0.00030695,2]
[423645362,1780272645000,-244.12837274,0.00030695,2]
[423645353,1780272645000,-581.95229306,0.00030694,2]
[423645354,1780272645000,-154.56645105,0.00030694,2]
[423645351,1780272645000,-3639.0,0.00030672,2]
[423645355,1780272645000,-556.29963269,0.00030694,2]
[423645361,1780272645000,-466.70972446,0.00030695,2]
[423645356,1780272645000,-297.3554536,0.00030694,2]
[423645359,1780272645000,-394.55665374,0.00030695,2]
[423645357,1780272645000,-490.46648652,0.00030694,2]
[423645358,1780272645000,-462.20544053,0.00030694,2]
[423645360,1780272645000,-484.06700132,0.00030695,2]
[423645364,1780272645000,-609.09570351,0.00030695,2]
[423645369,1780272645000,-265.09182379,0.0003071,2]
[423645365,1780272645000,-243.91893435,0.0003071,2]
[423645388,1780272645000,-157.0,0.00030722,30]
[423645386,1780272645000,-1097.0,0.00030722,30]
[423645382,1780272645000,-200.0,0.00030714,2]
[423645373,1780272645000,-452.44357361,0.0003071,2]
[423645371,1780272645000,-295.05186744,0.0003071,2]
[423645385,1780272645000,-265.0,0.00030722,30]
[423645383,1780272645000,-387.0,0.00030722,30]
[423645367,1780272645000,-519.27787631,0.0003071,2]
[423645384,1780272645000,-507.0,0.00030722,30]
[423645375,1780272645000,-337.02751349,0.0003071,2]
[423645387,1780272645000,-691.0,0.00030722,30]
[423645378,1780272645000,-227.62843495,0.0003071,2]
[423645380,1780272645000,-360.78332652,0.0003071,2]
[423645377,1780272645000,-485.71116604,0.0003071,2]
[423645457,1780272646000,-589.96508097,0.00031225,2]
[423645468,1780272646000,-326.20632669,0.00031225,2]
[423645458,1780272646000,-557.79234905,0.00031225,2]
[423645452,1780272646000,-415.10115798,0.00031225,2]
[423645454,1780272646000,-608.58344925,0.00031225,2]
[423645461,1780272646000,-685.70305341,0.00031225,2]
[423645471,1780272646000,-654.88019101,0.00031225,2]
[423645473,1780272646000,-503.00198137,0.00031225,2]
[423645460,1780272646000,-167.53519908,0.00031225,2]
[423645463,1780272646000,-679.52564263,0.00031225,2]
[423645465,1780272646000,-640.51787465,0.00031225,2]
[423645462,1780272646000,-168.89801685,0.00031225,2]
[423645456,1780272646000,-588.04700654,0.00031225,2]
[423645475,1780272646000,-597.32328217,0.00031225,2]
[423645466,1780272646000,-741.56065935,0.00031225,2]
[423645464,1780272646000,-648.49322422,0.00031225,2]
[423645469,1780272646000,-666.38831559,0.00031225,2]
[423645470,1780272646000,-522.68579823,0.00031225,2]
[423645487,1780272646000,-346.61684002,0.00031225,2]
[423645477,1780272646000,-794.75209317,0.00031225,2]
[423645479,1780272646000,-300.13285425,0.00031225,2]
[423645489,1780272646000,-948.38979186,0.00031225,2]
[423645485,1780272646000,-329.82409151,0.00031225,2]
[423645481,1780272646000,-384.56370732,0.00031225,2]
[423645491,1780272646000,-212.80508935,0.00031225,2]
[423645455,1780272646000,-431.75728483,0.00031225,2]
[423645493,1780272646000,-333.91838698,0.00031225,2]
[423645467,1780272646000,-164.99594136,0.00031225,2]
[423645459,1780272646000,-310.58641667,0.00031225,2]
[423645438,1780272646000,-168.29590529,0.00031225,2]
[423645453,1780272646000,-315.42133647,0.00031225,2]
[423645483,1780272646000,-431.36159387,0.00031225,2]
[423645426,1780272646000,-170.17613914,0.00031225,2]
[423645424,1780272646000,-222.40384719,0.00031225,2]
[423645427,1780272646000,-484.15099726,0.00031225,2]
[423645425,1780272646000,-167.95156274,0.00031225,2]
[423645429,1780272646000,-168.82067048,0.00031225,2]
[423645440,1780272646000,-1156.60910732,0.00031225,2]
[423645439,1780272646000,-413.57620668,0.00031225,2]
[423645431,1780272646000,-643.62911756,0.00031225,2]
[423645434,1780272646000,-157.75957663,0.00031225,2]
[423645430,1780272646000,-552.22082348,0.00031225,2]
[423645432,1780272646000,-1076.10300185,0.00031225,2]
[423645428,1780272646000,-561.30735455,0.00031225,2]
[423645433,1780272646000,-165.5789139,0.00031225,2]
[423645435,1780272646000,-574.60601472,0.00031225,2]
[423645437,1780272646000,-594.25714983,0.00031225,2]
[423645436,1780272646000,-534.16016612,0.00031225,2]
[423645441,1780272646000,-168.87080563,0.00031225,2]
[423645444,1780272646000,-170.8250504,0.00031225,2]
[423645443,1780272646000,-457.92924254,0.00031225,2]
[423645442,1780272646000,-178.15740495,0.00031225,2]
[423645445,1780272646000,-441.00387709,0.00031225,2]
[423645446,1780272646000,-1116.62802916,0.00031225,2]
[423645447,1780272646000,-164.4424265,0.00031225,2]
[423645448,1780272646000,-527.85971693,0.00031225,2]
[423645450,1780272646000,-590.58049934,0.00031225,2]
[423645451,1780272646000,-161.56256408,0.00031225,2]
[423645449,1780272646000,-160.52383582,0.00031225,2]
[423645495,1780272646000,-518.10703436,0.00031225,2]
[423645501,1780272646000,-572.02407945,0.00031225,2]
[423645498,1780272646000,-729.96681016,0.00031225,2]
[423645529,1780272646000,-186.64364503,0.00031302,120]
[423645532,1780272646000,-692.37050174,0.00031303,2]
[423645533,1780272646000,-530.18364758,0.00031303,2]
[423645531,1780272646000,-487.8378687,0.00031303,2]
[423645535,1780272646000,-678.66536041,0.00031303,2]
[423645536,1780272646000,-505.54127023,0.00031303,2]
[423645539,1780272646000,-455.25686989,0.00031303,2]
[423645537,1780272646000,-202.51134261,0.00031303,2]
[423645541,1780272646000,-1912.17,0.0003132,2]
[423645542,1780272646000,-1989.08,0.00031328,120]
[423645543,1780272646000,-1989.08,0.00031328,120]
[423645538,1780272646000,-647.61488805,0.00031303,2]
[423645540,1780272646000,-541.17498978,0.00031303,2]
[423645528,1780272646000,-571.63,0.00031302,120]
[423645545,1780272646000,-1989.08,0.00031328,120]
[423645547,1780272646000,-1989.11,0.00031328,120]
[423645546,1780272646000,-1989.08,0.00031328,120]
[423645548,1780272646000,-571.63,0.00031328,120]
[423645550,1780272646000,-571.63,0.00031328,120]
[423645549,1780272646000,-571.63,0.00031328,120]
[423645552,1780272646000,-571.63,0.00031328,120]
[423645551,1780272646000,-571.63,0.00031328,120]
[423645553,1780272646000,-571.79,0.00031328,120]
[423645555,1780272646000,-555.49,0.00031328,2]
[423645556,1780272646000,-555.49,0.00031328,2]
[423645497,1780272646000,-321.409638,0.00031225,2]
[423645558,1780272646000,-555.49,0.00031328,2]
[423645557,1780272646000,-555.49,0.00031328,2]
[423645544,1780272646000,-1989.08,0.00031328,120]
[423645530,1780272646000,-555.49,0.00031302,2]
[423645554,1780272646000,-555.49,0.00031328,2]
[423645526,1780272646000,-812.12760468,0.00031287,2]
[423645534,1780272646000,-590.10373488,0.00031303,2]
[423645511,1780272646000,-775.93639075,0.00031286,2]
[423645502,1780272646000,-888.54873643,0.00031225,2]
[423645510,1780272646000,-4769.70241982,0.00031229,2]
[423645499,1780272646000,-590.52794988,0.00031225,2]
[423645503,1780272646000,-560.49712527,0.00031225,2]
[423645504,1780272646000,-573.00708804,0.00031225,2]
[423645505,1780272646000,-588.95952895,0.00031225,2]
[423645507,1780272646000,-665.3029258,0.00031225,2]
[423645509,1780272646000,-456.39027243,0.00031225,2]
[423645508,1780272646000,-607.31104278,0.00031225,2]
[423645506,1780272646000,-349.08950313,0.00031225,2]
[423645515,1780272646000,-159.8992,0.00031286,2]
[423645500,1780272646000,-595.42523694,0.00031225,2]
[423645514,1780272646000,-594.71090719,0.00031286,2]
[423645524,1780272646000,-488.25674548,0.00031287,2]
[423645527,1780272646000,-1989.08,0.00031302,120]
[423645525,1780272646000,-606.39043808,0.00031287,2]
[423645519,1780272646000,-150.18483003,0.00031286,2]
[423645512,1780272646000,-309.13290211,0.00031286,2]
[423645523,1780272646000,-622.27963261,0.00031287,2]
[423645520,1780272646000,-591.83498061,0.00031287,2]
[423645513,1780272646000,-741.73284359,0.00031286,2]
[423645517,1780272646000,-155.84289064,0.00031286,2]
[423645516,1780272646000,-653.95531535,0.00031286,2]
[423645522,1780272646000,-217.5978607,0.00031287,2]
[423645518,1780272646000,-616.27392071,0.00031286,2]
[423645521,1780272646000,-645.42266843,0.00031287,2]
[423645599,1780272647000,-817.44414419,0.00031879,2]
[423645597,1780272647000,-3550.0,0.00031862,2]
[423645592,1780272647000,-993.44011646,0.00031816,2]
[423645594,1780272647000,-912.4585127,0.00031816,2]
[423645591,1780272647000,-818.60023876,0.00031816,2]
[423645589,1780272647000,-926.95082419,0.00031816,2]
[423645596,1780272647000,-1356.0,0.00031862,2]
[423645590,1780272647000,-832.98539449,0.00031816,2]
[423645595,1780272647000,-928.0,0.00031862,2]
[423645588,1780272647000,-800.64734331,0.00031816,2]
[423645593,1780272647000,-1185.48723983,0.00031816,2]
[423645598,1780272647000,-927.16605449,0.00031879,2]
[423645602,1780272647000,-865.46312718,0.00031896,2]
[423645601,1780272647000,-777.84954076,0.0003188,2]
[423645614,1780272647000,-271.6,0.000321,120]
[423645613,1780272647000,-3370.31,0.000321,14]
[423645612,1780272647000,-200.0,0.00032055,2]
[423645604,1780272647000,-26897.0,0.00031924,2]
[423645605,1780272647000,-632.0,0.00031943,7]
[423645603,1780272647000,-809.51861006,0.00031896,2]
[423645607,1780272647000,-336.77,0.00032,7]
[423645610,1780272647000,-1034.82,0.00032,7]
[423645606,1780272647000,-2000.0,0.00031981,23]
[423645578,1780272647000,-156.0,0.00031753,30]
[423645611,1780272647000,-151.0,0.00032005,4]
[423645600,1780272647000,-770.34240089,0.00031879,2]
[423645585,1780272647000,-1445.76138414,0.00031816,2]
[423645573,1780272647000,-158.0,0.00031722,30]
[423645581,1780272647000,-791.85232135,0.00031816,2]
[423645608,1780272647000,-700.0,0.00032,2]
[423645561,1780272647000,-3653.15798536,0.00031329,7]
[423645560,1780272647000,-468203.88648054,0.00031329,7]
[423645562,1780272647000,-632.0,0.00031409,6]
[423645559,1780272647000,-555.51917216,0.00031328,2]
[423645563,1780272647000,-1000.0,0.00031507,60]
[423645567,1780272647000,-387.0,0.00031722,30]
[423645571,1780272647000,-691.0,0.00031722,30]
[423645568,1780272647000,-507.0,0.00031722,30]
[423645564,1780272647000,-203.39,0.00031507,30]
[423645574,1780272647000,-1179.0,0.00031722,30]
[423645565,1780272647000,-1676.44,0.00031595,2]
[423645566,1780272647000,-701.23,0.000317,7]
[423645569,1780272647000,-265.0,0.00031722,30]
[423645572,1780272647000,-157.0,0.00031722,30]
[423645570,1780272647000,-1097.0,0.00031722,30]
[423645576,1780272647000,-186.0,0.00031753,30]
[423645586,1780272647000,-1395.78503645,0.00031816,2]
[423645575,1780272647000,-288.0,0.00031722,30]
[423645587,1780272647000,-857.12881677,0.00031816,2]
[423645579,1780272647000,-1196.0,0.00031753,30]
[423645577,1780272647000,-995.0,0.00031753,30]
[423645583,1780272647000,-804.53639695,0.00031816,2]
[423645580,1780272647000,-10000.0,0.00031767,2]
[423645582,1780272647000,-955.61893959,0.00031816,2]
[423645584,1780272647000,-1345.12875231,0.00031816,2]
[423645609,1780272647000,-157.06,0.00032,2]
[423645620,1780272647000,-4260.94,0.00032414,14]
[423645622,1780272647000,-1000.0,0.000325,2]
[423645647,1780272647000,-995.0,0.00032753,30]
[423645648,1780272647000,-156.0,0.00032753,30]
[423645645,1780272647000,-288.0,0.00032722,30]
[423645650,1780272647000,-1112.59926538,0.00032768,2]
[423645649,1780272647000,-1196.0,0.00032753,30]
[423645651,1780272647000,-980.93297303,0.00032768,2]
[423645653,1780272647000,-971.42233207,0.00032785,2]
[423645654,1780272647000,-350.8,0.00032877,2]
[423645656,1780272647000,-577.17826174,0.00032877,2]
[423645666,1780272647000,-218.67,0.000329,120]
[423645660,1780272647000,-500.0,0.00032877,2]
[423645661,1780272647000,-500.0,0.00032877,2]
[423645663,1780272647000,-500.0,0.00032877,2]
[423645662,1780272647000,-500.0,0.00032877,2]
[423645657,1780272647000,-1000.0,0.00032877,120]
[423645658,1780272647000,-500.0,0.00032877,2]
[423645665,1780272647000,-203.38889498,0.00032877,30]
[423645659,1780272647000,-500.0,0.00032877,2]
[423645664,1780272647000,-423.13003328,0.00032877,2]
[423645668,1780272647000,-269.11,0.000329,120]
[423645669,1780272647000,-407.0,0.00032955,2]
[423645671,1780272647000,-419.05891266,0.00032955,2]
[423645667,1780272647000,-192.21,0.000329,120]
[423645670,1780272647000,-407.0,0.00032955,2]
[423645615,1780272647000,-658.0,0.00032136,30]
[423645646,1780272647000,-186.0,0.00032753,30]
[423645644,1780272647000,-1179.0,0.00032722,30]
[423645655,1780272647000,-231.54,0.00032877,2]
[423645652,1780272647000,-1038.55575261,0.00032785,2]
[423645643,1780272647000,-158.0,0.00032722,30]
[423645619,1780272647000,-204.845,0.00032394,32]
[423645672,1780272647000,-246.09559064,0.00032955,2]
[423645617,1780272647000,-571.2,0.0003221,5]
[423645616,1780272647000,-7244.9602,0.00032137,30]
[423645624,1780272647000,-150.0,0.00032562,2]
[423645627,1780272647000,-965.44367634,0.00032704,2]
[423645626,1780272647000,-1146.7427275,0.00032704,2]
[423645621,1780272647000,-632.0,0.00032477,7]
[423645625,1780272647000,-950.22278562,0.00032704,2]
[423645623,1780272647000,-1000.0,0.000325,7]
[423645629,1780272647000,-1734.91366097,0.00032704,2]
[423645640,1780272647000,-1097.0,0.00032722,30]
[423645618,1780272647000,-2070.728,0.00032394,32]
[423645642,1780272647000,-157.0,0.00032722,30]
[423645639,1780272647000,-265.0,0.00032722,30]
[423645641,1780272647000,-691.0,0.00032722,30]
[423645638,1780272647000,-507.0,0.00032722,30]
[423645637,1780272647000,-387.0,0.00032722,30]
[423645635,1780272647000,-1192.12813976,0.00032704,2]
[423645636,1780272647000,-1422.58468779,0.00032704,2]
[423645631,1780272647000,-1028.55458012,0.00032704,2]
[423645633,1780272647000,-1112.34098902,0.00032704,2]
[423645630,1780272647000,-1674.94204374,0.00032704,2]
[423645628,1780272647000,-1614.15450277,0.00032704,2]
[423645632,1780272647000,-960.77681198,0.00032704,2]
[423645634,1780272647000,-982.32028651,0.00032704,2]
[423645708,1780272648000,-200.0,0.00033318,2]
[423645713,1780272648000,-200.0,0.00033318,2]
[423645712,1780272648000,-166.0,0.00033318,2]
[423645711,1780272648000,-200.0,0.00033318,2]
[423645706,1780272648000,-200.0,0.00033318,2]
[423645703,1780272648000,-200.0,0.00033318,2]
[423645704,1780272648000,-200.0,0.00033318,2]
[423645705,1780272648000,-200.0,0.00033318,2]
[423645710,1780272648000,-200.0,0.00033318,2]
[423645709,1780272648000,-200.0,0.00033318,2]
[423645714,1780272648000,-200.0,0.00033318,2]
[423645707,1780272648000,-200.0,0.00033318,2]
[423645716,1780272648000,-200.0,0.00033318,2]
[423645717,1780272648000,-200.0,0.00033318,2]
[423645723,1780272648000,-200.0,0.00033318,2]
[423645721,1780272648000,-200.0,0.00033318,2]
[423645718,1780272648000,-200.0,0.00033318,2]